[Event "*** Titled Tuesday Blitz"]
[Site "Chess.com"]
[Date "2021.02.16"]
[Round "1"]
[White "ZiggyStardust64"]
[Black "norwaytoadog"]
[Result "1-0"]
[WhiteElo "2584"]
[BlackElo "2273"]
[TimeControl "180+1"]
[EndTime "10:06:45 PST"]
[Termination "ZiggyStardust64 won on time"]

1. c4 {[%clk 0:03:00.9]} 1... e5 {[%clk 0:02:58.9]} 2. Nc3 {[%clk 0:03:00.7]}
2... Nf6 {[%clk 0:02:58.8]} 3. Nf3 {[%clk 0:03:01.1]} 3... Nc6 {[%clk 0:02:59]}
4. e4 {[%clk 0:03:01.4]} 4... Bb4 {[%clk 0:02:57.9]} 5. d3 {[%clk 0:03:00.4]}
5... O-O {[%clk 0:02:56.8]} 6. a3 {[%clk 0:03:00.4]} 6... Bxc3+ {[%clk
0:02:56.8]} 7. bxc3 {[%clk 0:03:01.3]} 7... d6 {[%clk 0:02:57]} 8. Be2 {[%clk
0:03:01.4]} 8... a6 {[%clk 0:02:52.4]} 9. O-O {[%clk 0:03:01.3]} 9... b5 {[%clk
0:02:51.4]} 10. cxb5 {[%clk 0:02:47.7]} 10... axb5 {[%clk 0:02:51.4]} 11. Bg5
{[%clk 0:02:43.4]} 11... h6 {[%clk 0:02:49.9]} 12. Bh4 {[%clk 0:02:42.6]} 12...
Qe7 {[%clk 0:02:38.7]} 13. d4 {[%clk 0:02:34.4]} 13... exd4 {[%clk 0:02:29.7]}
14. cxd4 {[%clk 0:02:33]} 14... Qxe4 {[%clk 0:02:09.6]} 15. Bxf6 {[%clk
0:02:10.6]} 15... gxf6 {[%clk 0:02:08.5]} 16. Bxb5 {[%clk 0:01:47.4]} 16... Bg4
{[%clk 0:01:50.7]} 17. Nd2 {[%clk 0:01:45.5]} 17... Nxd4 {[%clk 0:01:32.9]} 18.
Nxe4 {[%clk 0:00:45]} 18... Bxd1 {[%clk 0:01:32.6]} 19. Rfxd1 {[%clk 0:00:45.2]}
19... Nxb5 {[%clk 0:01:26.2]} 20. Nxf6+ {[%clk 0:00:45.3]} 20... Kg7 {[%clk
0:01:25.6]} 21. Nd5 {[%clk 0:00:46]} 21... c5 {[%clk 0:01:14.1]} 22. a4 {[%clk
0:00:45.6]} 22... Nd4 {[%clk 0:01:13.6]} 23. a5 {[%clk 0:00:40.9]} 23... Nb3
{[%clk 0:01:07.4]} 24. Ra3 {[%clk 0:00:40.3]} 24... Rfb8 {[%clk 0:00:38.3]} 25.
Nb6 {[%clk 0:00:31.8]} 25... Rxb6 {[%clk 0:00:25.4]} 26. axb6 {[%clk 0:00:32.7]}
26... Rxa3 {[%clk 0:00:13.4]} 27. b7 {[%clk 0:00:32.9]} 27... Nd2 {[%clk
0:00:13.1]} 28. b8=Q {[%clk 0:00:30.7]} 1-0

[Event "*** Titled Tuesday Blitz"]
[Site "Chess.com"]
[Date "2021.02.16"]
[Round "1"]
[White "Beca95"]
[Black "rynos0411"]
[Result "1-0"]
[WhiteElo "2918"]
[BlackElo "2458"]
[TimeControl "180+1"]
[EndTime "10:06:46 PST"]
[Termination "Beca95 won by resignation"]

1. d4 {[%clk 0:03:00.7]} 1... Nf6 {[%clk 0:02:57.4]} 2. Bg5 {[%clk 0:02:56.6]}
2... Ne4 {[%clk 0:02:53.6]} 3. h4 {[%clk 0:02:55.9]} 3... d5 {[%clk 0:02:51.3]}
4. Nd2 {[%clk 0:02:54.6]} 4... Nxd2 {[%clk 0:02:47]} 5. Qxd2 {[%clk 0:02:54.6]}
5... h6 {[%clk 0:02:47.1]} 6. Bf4 {[%clk 0:02:54.2]} 6... Bf5 {[%clk 0:02:47.3]}
7. f3 {[%clk 0:02:49.3]} 7... e6 {[%clk 0:02:45]} 8. g4 {[%clk 0:02:49]} 8...
Bh7 {[%clk 0:02:41.1]} 9. e3 {[%clk 0:02:49.3]} 9... Be7 {[%clk 0:02:40.8]} 10.
Bg3 {[%clk 0:02:46.6]} 10... c5 {[%clk 0:02:41.1]} 11. c3 {[%clk 0:02:46.5]}
11... Nc6 {[%clk 0:02:41.1]} 12. Bd3 {[%clk 0:02:46]} 12... Bxd3 {[%clk
0:02:37.8]} 13. Qxd3 {[%clk 0:02:46.9]} 13... Qb6 {[%clk 0:02:37.6]} 14. Rb1
{[%clk 0:02:42]} 14... Qa5 {[%clk 0:02:25.2]} 15. a3 {[%clk 0:02:34.4]} 15...
cxd4 {[%clk 0:02:08.3]} 16. exd4 {[%clk 0:02:35.3]} 16... O-O {[%clk 0:02:06.4]}
17. Ne2 {[%clk 0:02:35.2]} 17... Rfe8 {[%clk 0:02:04.9]} 18. f4 {[%clk
0:02:32.5]} 18... Bd6 {[%clk 0:01:57.9]} 19. Kf2 {[%clk 0:02:32.3]} 19... Qc7
{[%clk 0:01:56.7]} 20. Kg2 {[%clk 0:02:32.1]} 20... a6 {[%clk 0:01:37.3]} 21. h5
{[%clk 0:02:32.2]} 21... b5 {[%clk 0:01:35.9]} 22. g5 {[%clk 0:02:32.4]} 22...
hxg5 {[%clk 0:01:34.8]} 23. fxg5 {[%clk 0:02:33.3]} 23... Bxg3 {[%clk 0:01:34]}
24. Nxg3 {[%clk 0:02:34.1]} 24... Qf4 {[%clk 0:01:34.6]} 25. g6 {[%clk
0:02:31.9]} 25... f5 {[%clk 0:01:26.8]} 26. Rbf1 {[%clk 0:02:27.7]} 26... Qg5
{[%clk 0:01:26.5]} 27. Qf3 {[%clk 0:01:46.8]} 27... Rf8 {[%clk 0:01:09.6]} 28.
Qf4 {[%clk 0:01:45.6]} 28... Qxf4 {[%clk 0:01:02.7]} 29. Rxf4 {[%clk 0:01:46.5]}
29... Na5 {[%clk 0:01:00.6]} 30. Re1 {[%clk 0:01:41.7]} 30... Rf6 {[%clk
0:00:57.4]} 31. Nh1 {[%clk 0:01:40.7]} 31... Nc4 {[%clk 0:00:56.5]} 32. Re2
{[%clk 0:01:41]} 32... a5 {[%clk 0:00:55.8]} 33. Nf2 {[%clk 0:01:40.8]} 33... b4
{[%clk 0:00:55.1]} 34. axb4 {[%clk 0:01:40.7]} 34... axb4 {[%clk 0:00:55.3]} 35.
cxb4 {[%clk 0:01:41.5]} 35... Ra2 {[%clk 0:00:32.8]} 36. Nd3 {[%clk 0:01:41.4]}
36... Nd6 {[%clk 0:00:27.1]} 37. Rf1 {[%clk 0:01:34.6]} 37... Ne4 {[%clk
0:00:27.1]} 38. Nf4 {[%clk 0:01:28.3]} 38... Ra4 {[%clk 0:00:19.7]} 39. Rc1
{[%clk 0:01:27.8]} 39... Rxb4 {[%clk 0:00:15.9]} 40. Rc8+ {[%clk 0:01:26.3]}
40... Rf8 {[%clk 0:00:16.5]} 41. Rxf8+ {[%clk 0:01:26.5]} 41... Kxf8 {[%clk
0:00:17.4]} 42. Nxe6+ {[%clk 0:01:27]} 42... Kg8 {[%clk 0:00:17.9]} 43. Rc2
{[%clk 0:01:26.4]} 43... Rb8 {[%clk 0:00:16.8]} 44. Rc7 {[%clk 0:01:17.2]} 44...
Rxb2+ {[%clk 0:00:14.6]} 45. Kf3 {[%clk 0:01:15.3]} 45... Rb8 {[%clk 0:00:08.7]}
46. Rxg7+ {[%clk 0:01:13.7]} 46... Kh8 {[%clk 0:00:08.6]} 47. Rf7 {[%clk
0:01:12]} 47... Re8 {[%clk 0:00:06.9]} 48. Rf8+ {[%clk 0:01:11.6]} 48... Rxf8
{[%clk 0:00:06.7]} 49. g7+ {[%clk 0:01:12.1]} 1-0

[Event "*** Titled Tuesday Blitz"]
[Site "Chess.com"]
[Date "2021.02.16"]
[Round "1"]
[White "besarquis"]
[Black "Zurability"]
[Result "0-1"]
[WhiteElo "2298"]
[BlackElo "2604"]
[TimeControl "180+1"]
[EndTime "10:06:46 PST"]
[Termination "Zurability won by resignation"]

1. e4 {[%clk 0:03:00.9]} 1... c5 {[%clk 0:02:57.6]} 2. Nf3 {[%clk 0:03:00.6]}
2... d6 {[%clk 0:02:54.7]} 3. Bb5+ {[%clk 0:02:59.7]} 3... Bd7 {[%clk
0:02:53.9]} 4. Bxd7+ {[%clk 0:02:59.2]} 4... Qxd7 {[%clk 0:02:50.1]} 5. c4
{[%clk 0:03:00.1]} 5... e5 {[%clk 0:02:47.8]} 6. Nc3 {[%clk 0:03:00.1]} 6... Nc6
{[%clk 0:02:14]} 7. d3 {[%clk 0:02:59.3]} 7... g6 {[%clk 0:02:08.6]} 8. O-O
{[%clk 0:02:48.1]} 8... Bg7 {[%clk 0:02:07.8]} 9. Nd5 {[%clk 0:02:37.3]} 9...
Nge7 {[%clk 0:01:56.9]} 10. Bg5 {[%clk 0:02:32.2]} 10... Nxd5 {[%clk 0:01:55.7]}
11. exd5 {[%clk 0:02:27.4]} 11... Ne7 {[%clk 0:01:55.1]} 12. Nd2 {[%clk
0:02:19.1]} 12... h6 {[%clk 0:01:53.9]} 13. Be3 {[%clk 0:02:18.9]} 13... O-O
{[%clk 0:01:51.9]} 14. Rb1 {[%clk 0:02:07.5]} 14... f5 {[%clk 0:01:46.4]} 15. f3
{[%clk 0:02:04.3]} 15... a5 {[%clk 0:01:40.5]} 16. b3 {[%clk 0:02:00.9]} 16...
b5 {[%clk 0:01:37.3]} 17. Qc2 {[%clk 0:01:53.8]} 17... b4 {[%clk 0:01:36.2]} 18.
a4 {[%clk 0:01:44.3]} 18... bxa3 {[%clk 0:01:29.3]} 19. Qa2 {[%clk 0:01:44.1]}
19... Rfb8 {[%clk 0:01:29.6]} 20. Qxa3 {[%clk 0:01:43.1]} 20... Rb4 {[%clk
0:01:30]} 21. Rfc1 {[%clk 0:01:32.7]} 21... a4 {[%clk 0:01:18.4]} 22. Rc2 {[%clk
0:01:14.2]} 22... Qb7 {[%clk 0:01:10.7]} 23. Ra2 {[%clk 0:01:11.9]} 23... Rb8
{[%clk 0:01:06.8]} 24. Rc2 {[%clk 0:00:32.8]} 24... e4 {[%clk 0:00:52]} 25. dxe4
{[%clk 0:00:27.2]} 25... axb3 {[%clk 0:00:51.9]} 26. Rcc1 {[%clk 0:00:26.2]}
26... Ra8 {[%clk 0:00:48.9]} 27. Qxa8+ {[%clk 0:00:20.5]} 27... Qxa8 {[%clk
0:00:48.5]} 28. exf5 {[%clk 0:00:21.4]} 28... Nxf5 {[%clk 0:00:48.5]} 29. Bf4
{[%clk 0:00:20.5]} 29... Qa2 {[%clk 0:00:42.9]} 30. Ne4 {[%clk 0:00:19.5]} 30...
Bd4+ {[%clk 0:00:39.5]} 31. Kh1 {[%clk 0:00:18.3]} 31... b2 {[%clk 0:00:40.1]}
32. Rd1 {[%clk 0:00:17.1]} 32... Ra4 {[%clk 0:00:38.1]} 33. Nxd6 {[%clk
0:00:13.6]} 33... Nxd6 {[%clk 0:00:37.7]} 34. Bxd6 {[%clk 0:00:13.5]} 34... Qxb1
{[%clk 0:00:38.4]} 35. Rxb1 {[%clk 0:00:13.1]} 35... Ra1 {[%clk 0:00:39.1]} 0-1

[Event "*** Titled Tuesday Blitz"]
[Site "Chess.com"]
[Date "2021.02.16"]
[Round "1"]
[White "esrosenberg"]
[Black "PlotnikovPavel"]
[Result "0-1"]
[WhiteElo "2109"]
[BlackElo "2501"]
[TimeControl "180+1"]
[EndTime "10:06:46 PST"]
[Termination "PlotnikovPavel won by resignation"]

1. Nf3 {[%clk 0:03:00.9]} 1... d6 {[%clk 0:02:11.5]} 2. d4 {[%clk 0:02:54.7]}
2... Nf6 {[%clk 0:02:10.4]} 3. c4 {[%clk 0:02:54.1]} 3... g6 {[%clk 0:02:09.9]}
4. Nc3 {[%clk 0:02:53.5]} 4... Bg7 {[%clk 0:02:10.5]} 5. e4 {[%clk 0:02:54]}
5... O-O {[%clk 0:02:11.2]} 6. h3 {[%clk 0:02:54.5]} 6... e5 {[%clk 0:02:11.1]}
7. dxe5 {[%clk 0:02:54.4]} 7... dxe5 {[%clk 0:02:11]} 8. Qxd8 {[%clk 0:02:55.3]}
8... Rxd8 {[%clk 0:02:10]} 9. Bg5 {[%clk 0:02:55.9]} 9... Re8 {[%clk 0:02:10.3]}
10. Nd5 {[%clk 0:02:55.7]} 10... Nxd5 {[%clk 0:02:10.3]} 11. cxd5 {[%clk
0:02:56.6]} 11... c6 {[%clk 0:02:09.1]} 12. Bc4 {[%clk 0:02:57]} 12... cxd5
{[%clk 0:02:08.6]} 13. Bxd5 {[%clk 0:02:57.9]} 13... Nd7 {[%clk 0:02:07.4]} 14.
Rc1 {[%clk 0:02:57.5]} 14... Nb6 {[%clk 0:02:06.6]} 15. Bb3 {[%clk 0:02:54.9]}
15... Be6 {[%clk 0:02:06.4]} 16. Bxe6 {[%clk 0:02:54.1]} 16... Rxe6 {[%clk
0:02:07.3]} 17. Rc7 {[%clk 0:02:54.1]} 17... Rb8 {[%clk 0:02:05]} 18. Ke2 {[%clk
0:02:43.4]} 18... Rc6 {[%clk 0:01:57.8]} 19. Rc1 {[%clk 0:02:29.2]} 19... Rxc1
{[%clk 0:01:51.4]} 20. Bxc1 {[%clk 0:02:28.3]} 20... Rc8 {[%clk 0:01:50.5]} 21.
Rxc8+ {[%clk 0:02:12.7]} 21... Nxc8 {[%clk 0:01:51.4]} 22. Be3 {[%clk
0:02:13.2]} 22... b6 {[%clk 0:01:48.6]} 23. b3 {[%clk 0:02:01.4]} 23... Nd6
{[%clk 0:01:48.5]} 24. Nd2 {[%clk 0:01:59.9]} 24... f5 {[%clk 0:01:48.6]} 25. f3
{[%clk 0:01:58.7]} 25... f4 {[%clk 0:01:46.8]} 26. Bf2 {[%clk 0:01:57.3]} 26...
Kf7 {[%clk 0:01:45.5]} 27. Kd3 {[%clk 0:01:57.2]} 27... Ke6 {[%clk 0:01:45.7]}
28. Nc4 {[%clk 0:01:57.5]} 28... Nb7 {[%clk 0:01:45.4]} 29. a4 {[%clk
0:01:53.7]} 29... Bf8 {[%clk 0:01:41.2]} 30. Kc3 {[%clk 0:01:40.4]} 30... g5
{[%clk 0:01:37.3]} 31. b4 {[%clk 0:01:39.3]} 31... h5 {[%clk 0:01:36.5]} 32. a5
{[%clk 0:01:11.3]} 32... b5 {[%clk 0:01:36.3]} 33. a6 {[%clk 0:01:00.5]} 33...
Nd8 {[%clk 0:01:36.3]} 34. Na5 {[%clk 0:00:40.6]} 34... Kd7 {[%clk 0:01:31.1]}
35. Bxa7 {[%clk 0:00:39.6]} 35... Bd6 {[%clk 0:01:27.6]} 36. Bc5 {[%clk
0:00:30.2]} 36... Bxc5 {[%clk 0:01:13.5]} 37. bxc5 {[%clk 0:00:29.9]} 37... Ne6
{[%clk 0:01:14.4]} 38. Kb4 {[%clk 0:00:16.5]} 38... Nc7 {[%clk 0:01:14]} 39. a7
{[%clk 0:00:12.4]} 39... h4 {[%clk 0:01:12.5]} 40. c6+ {[%clk 0:00:10.4]} 40...
Kd6 {[%clk 0:01:11.7]} 41. Kc3 {[%clk 0:00:06.6]} 41... Kc5 {[%clk 0:01:11.7]}
42. Kb3 {[%clk 0:00:06.1]} 42... Kb6 {[%clk 0:01:11.6]} 43. Kb4 {[%clk
0:00:04.8]} 43... Kxa7 {[%clk 0:01:11.6]} 44. Nb3 {[%clk 0:00:04.3]} 44... Kb6
{[%clk 0:01:11.7]} 45. Na5 {[%clk 0:00:05]} 45... Na6+ {[%clk 0:01:11.6]} 46.
Kc3 {[%clk 0:00:04.3]} 46... Kxa5 {[%clk 0:01:12.5]} 0-1

[Event "*** Titled Tuesday Blitz"]
[Site "Chess.com"]
[Date "2021.02.16"]
[Round "1"]
[White "djano"]
[Black "akanga001"]
[Result "1-0"]
[WhiteElo "2479"]
[BlackElo "1967"]
[TimeControl "180+1"]
[EndTime "10:06:46 PST"]
[Termination "djano won by resignation"]

1. e3 {[%clk 0:02:59.1]} 1... d5 {[%clk 0:02:35.6]} 2. c4 {[%clk 0:02:56.1]}
2... Nf6 {[%clk 0:02:32.8]} 3. Nf3 {[%clk 0:02:55.3]} 3... c6 {[%clk 0:02:29.5]}
4. b3 {[%clk 0:02:54.6]} 4... Bf5 {[%clk 0:02:27.4]} 5. Bb2 {[%clk 0:02:54]}
5... h6 {[%clk 0:02:26.7]} 6. Be2 {[%clk 0:02:51]} 6... Nbd7 {[%clk 0:02:26.6]}
7. d3 {[%clk 0:02:48.3]} 7... e6 {[%clk 0:02:26.5]} 8. Nbd2 {[%clk 0:02:48.4]}
8... Bd6 {[%clk 0:02:22]} 9. O-O {[%clk 0:02:47.3]} 9... O-O {[%clk 0:02:16.1]}
10. Qc2 {[%clk 0:02:43.6]} 10... Bh7 {[%clk 0:02:14.7]} 11. Rab1 {[%clk
0:02:40]} 11... a5 {[%clk 0:02:13.7]} 12. Bc3 {[%clk 0:02:35.3]} 12... e5 {[%clk
0:02:11.5]} 13. cxd5 {[%clk 0:02:34.3]} 13... Nxd5 {[%clk 0:02:07.5]} 14. Ba1
{[%clk 0:02:27.3]} 14... Nb4 {[%clk 0:02:06.1]} 15. Qc4 {[%clk 0:02:23.2]} 15...
b5 {[%clk 0:02:02.1]} 16. Qg4 {[%clk 0:02:14.2]} 16... Bxd3 {[%clk 0:01:49.7]}
17. Bxd3 {[%clk 0:02:13.2]} 17... Nxd3 {[%clk 0:01:49.5]} 18. Qe4 {[%clk
0:02:12.6]} 18... Nb4 {[%clk 0:01:32.2]} 19. a3 {[%clk 0:02:05.2]} 19... f5
{[%clk 0:01:32.2]} 20. Qh4 {[%clk 0:01:58.5]} 20... Be7 {[%clk 0:01:31.4]} 21.
Qg3 {[%clk 0:01:52.3]} 21... Nc2 {[%clk 0:01:20.2]} 22. Nxe5 {[%clk 0:01:42.1]}
22... Nxa1 {[%clk 0:01:18.6]} 23. Nxc6 {[%clk 0:01:42.5]} 23... Qe8 {[%clk
0:01:15.5]} 24. Nxe7+ {[%clk 0:01:42.7]} 24... Qxe7 {[%clk 0:01:15.1]} 25. Rxa1
{[%clk 0:01:43.2]} 25... Nf6 {[%clk 0:01:11.1]} 26. Nf3 {[%clk 0:01:42.3]} 26...
Ne4 {[%clk 0:01:10.1]} 27. Qe5 {[%clk 0:01:40.4]} 27... Qxe5 {[%clk 0:01:07.7]}
28. Nxe5 {[%clk 0:01:41.3]} 28... Nc3 {[%clk 0:00:58]} 29. f4 {[%clk 0:01:36.8]}
29... Rfd8 {[%clk 0:00:55.4]} 30. Rae1 {[%clk 0:01:32.8]} 30... Rd2 {[%clk
0:00:53.6]} 31. Rf2 {[%clk 0:01:32]} 31... Rad8 {[%clk 0:00:52.5]} 32. h3 {[%clk
0:01:31.9]} 32... Rxf2 {[%clk 0:00:50.2]} 33. Kxf2 {[%clk 0:01:32.8]} 33... Rd2+
{[%clk 0:00:50.4]} 34. Kf1 {[%clk 0:01:32.1]} 34... Rb2 {[%clk 0:00:49.2]} 35.
b4 {[%clk 0:01:28.5]} 35... axb4 {[%clk 0:00:47.9]} 36. axb4 {[%clk 0:01:29.4]}
36... Rxb4 {[%clk 0:00:48]} 37. Rc1 {[%clk 0:01:30]} 37... Ne4 {[%clk
0:00:44.5]} 38. Rc6 {[%clk 0:01:21.8]} 38... Rb2 {[%clk 0:00:43.5]} 39. g4
{[%clk 0:01:21.3]} 39... Ng3+ {[%clk 0:00:43]} 40. Ke1 {[%clk 0:01:21.6]} 40...
Re2+ {[%clk 0:00:40.2]} 41. Kd1 {[%clk 0:01:22.1]} 41... Rxe3 {[%clk 0:00:40.4]}
42. Rb6 {[%clk 0:01:19]} 42... fxg4 {[%clk 0:00:40.1]} 43. hxg4 {[%clk
0:01:18.6]} 43... Rb3 {[%clk 0:00:37.6]} 44. f5 {[%clk 0:01:17.8]} 44... Rb2
{[%clk 0:00:35.9]} 45. Rb8+ {[%clk 0:01:16.5]} 45... Kh7 {[%clk 0:00:24.3]} 46.
Ng6 {[%clk 0:01:17.4]} 1-0

[Event "*** Titled Tuesday Blitz"]
[Site "Chess.com"]
[Date "2021.02.16"]
[Round "1"]
[White "Zenzo"]
[Black "DinaBelenkaya"]
[Result "1-0"]
[WhiteElo "2614"]
[BlackElo "2315"]
[TimeControl "180+1"]
[EndTime "10:06:47 PST"]
[Termination "Zenzo won by resignation"]

1. e4 {[%clk 0:03:00.3]} 1... d5 {[%clk 0:02:59.6]} 2. exd5 {[%clk 0:02:59.8]}
2... Qxd5 {[%clk 0:03:00.5]} 3. Nc3 {[%clk 0:02:59.1]} 3... Qa5 {[%clk
0:02:58.9]} 4. Bc4 {[%clk 0:02:59.5]} 4... Nf6 {[%clk 0:02:53.3]} 5. Nge2 {[%clk
0:02:59.2]} 5... e6 {[%clk 0:02:41.8]} 6. O-O {[%clk 0:02:58.8]} 6... Bd7 {[%clk
0:02:33.1]} 7. d4 {[%clk 0:02:58.5]} 7... Be7 {[%clk 0:02:17]} 8. d5 {[%clk
0:02:47.8]} 8... exd5 {[%clk 0:02:01.9]} 9. Nxd5 {[%clk 0:02:48.7]} 9... Nxd5
{[%clk 0:02:00.2]} 10. Bxd5 {[%clk 0:02:49.4]} 10... Bc6 {[%clk 0:01:54.1]} 11.
Nc3 {[%clk 0:02:41.4]} 11... O-O {[%clk 0:01:47.5]} 12. Qh5 {[%clk 0:02:26.6]}
12... Kh8 {[%clk 0:01:21.2]} 13. Bxf7 {[%clk 0:02:21.4]} 13... Qxh5 {[%clk
0:01:08.5]} 14. Bxh5 {[%clk 0:02:22.3]} 14... Na6 {[%clk 0:01:08.4]} 15. a3
{[%clk 0:02:18.6]} 15... Rad8 {[%clk 0:01:05.6]} 16. Be3 {[%clk 0:02:16.4]}
16... Bf6 {[%clk 0:01:04.6]} 17. Be2 {[%clk 0:02:10.7]} 17... Rfe8 {[%clk
0:00:36.9]} 18. Rfd1 {[%clk 0:02:06.8]} 18... Nb8 {[%clk 0:00:27.8]} 19. Rxd8
{[%clk 0:02:03.4]} 19... Bxd8 {[%clk 0:00:26.9]} 20. Rd1 {[%clk 0:02:04.3]}
20... Nd7 {[%clk 0:00:23.8]} 21. Bb5 {[%clk 0:02:02]} 21... Ne5 {[%clk
0:00:22.3]} 22. Bxc6 {[%clk 0:01:50.9]} 22... Nxc6 {[%clk 0:00:23.2]} 23. Nd5
{[%clk 0:01:49.3]} 23... b6 {[%clk 0:00:20.2]} 24. Kf1 {[%clk 0:01:46.6]} 24...
a5 {[%clk 0:00:19.9]} 25. Bf4 {[%clk 0:01:43.4]} 25... a4 {[%clk 0:00:08.5]} 26.
Bxc7 {[%clk 0:01:40]} 26... b5 {[%clk 0:00:08.6]} 27. Bxd8 {[%clk 0:01:37.6]}
27... Rxd8 {[%clk 0:00:09.5]} 28. Nc3 {[%clk 0:01:38]} 28... Re8 {[%clk
0:00:08.7]} 29. Nxb5 {[%clk 0:01:37.2]} 29... Ne5 {[%clk 0:00:08.4]} 30. Re1
{[%clk 0:01:33]} 30... Re7 {[%clk 0:00:07.2]} 31. Nc3 {[%clk 0:01:31.4]} 31...
Kg8 {[%clk 0:00:05.5]} 32. Nxa4 {[%clk 0:01:30.4]} 32... Kf7 {[%clk 0:00:05.9]}
33. f4 {[%clk 0:01:30.3]} 33... Ra7 {[%clk 0:00:06]} 34. Rxe5 {[%clk 0:01:27.8]}
34... Rxa4 {[%clk 0:00:06.1]} 35. g3 {[%clk 0:01:28]} 35... Kf6 {[%clk
0:00:05.3]} 36. Ke2 {[%clk 0:01:27]} 36... h6 {[%clk 0:00:05.7]} 37. h4 {[%clk
0:01:24.9]} 37... Rc4 {[%clk 0:00:04.4]} 38. c3 {[%clk 0:01:24.4]} 38... Rc8
{[%clk 0:00:05.2]} 39. a4 {[%clk 0:01:22.7]} 39... Ra8 {[%clk 0:00:05]} 40. a5
{[%clk 0:01:22.9]} 40... Ra7 {[%clk 0:00:03.5]} 41. b4 {[%clk 0:01:22.4]} 41...
Rc7 {[%clk 0:00:04]} 42. Kd3 {[%clk 0:01:21.8]} 42... Rd7+ {[%clk 0:00:04.4]}
43. Kc2 {[%clk 0:01:21.5]} 43... Rc7 {[%clk 0:00:05.3]} 44. a6 {[%clk
0:01:21.3]} 44... Rd7 {[%clk 0:00:05.8]} 45. b5 {[%clk 0:01:19.8]} 45... Rc7
{[%clk 0:00:01.8]} 46. b6 {[%clk 0:01:16.3]} 46... Rc6 {[%clk 0:00:02.3]} 47. a7
{[%clk 0:01:15.5]} 47... Rxb6 {[%clk 0:00:02.9]} 48. a8=Q {[%clk 0:01:15]} 48...
Ra6 {[%clk 0:00:03.3]} 49. Qxa6+ {[%clk 0:01:14.5]} 1-0

[Event "*** Titled Tuesday Blitz"]
[Site "Chess.com"]
[Date "2021.02.16"]
[Round "1"]
[White "SchmakAttack"]
[Black "Pantata007"]
[Result "1-0"]
[WhiteElo "2594"]
[BlackElo "2284"]
[TimeControl "180+1"]
[EndTime "10:06:47 PST"]
[Termination "SchmakAttack won on time"]

1. e4 {[%clk 0:03:00.8]} 1... e5 {[%clk 0:02:53.1]} 2. Nf3 {[%clk 0:03:00.5]}
2... Nc6 {[%clk 0:02:52.6]} 3. Bc4 {[%clk 0:03:00.4]} 3... Bc5 {[%clk
0:02:51.9]} 4. c3 {[%clk 0:02:58.6]} 4... Nf6 {[%clk 0:02:51.5]} 5. d3 {[%clk
0:02:59.1]} 5... O-O {[%clk 0:02:50.7]} 6. O-O {[%clk 0:02:59.3]} 6... d6 {[%clk
0:02:51.1]} 7. Re1 {[%clk 0:02:57.5]} 7... h6 {[%clk 0:02:43.2]} 8. h3 {[%clk
0:02:53.7]} 8... a5 {[%clk 0:02:42.8]} 9. Nbd2 {[%clk 0:02:48.7]} 9... Be6
{[%clk 0:02:35.8]} 10. Bxe6 {[%clk 0:02:26.5]} 10... fxe6 {[%clk 0:02:35.1]} 11.
Nc4 {[%clk 0:02:23.6]} 11... b5 {[%clk 0:02:27.5]} 12. Ne3 {[%clk 0:02:22.4]}
12... Bxe3 {[%clk 0:02:22.6]} 13. Bxe3 {[%clk 0:02:21.1]} 13... a4 {[%clk
0:02:13.6]} 14. Qc2 {[%clk 0:01:33]} 14... Nh5 {[%clk 0:02:02.4]} 15. d4 {[%clk
0:01:22.8]} 15... Qf6 {[%clk 0:01:58]} 16. Rad1 {[%clk 0:01:10.3]} 16... Nf4
{[%clk 0:01:42.3]} 17. dxe5 {[%clk 0:01:03.2]} 17... Nxe5 {[%clk 0:01:33.4]} 18.
Nxe5 {[%clk 0:00:59.4]} 18... Qxe5 {[%clk 0:01:33.5]} 19. c4 {[%clk 0:00:42.3]}
19... b4 {[%clk 0:01:28.5]} 20. c5 {[%clk 0:00:42.5]} 20... b3 {[%clk
0:00:27.8]} 21. axb3 {[%clk 0:00:40.3]} 21... axb3 {[%clk 0:00:28.7]} 22. Qxb3
{[%clk 0:00:37.8]} 22... Rfb8 {[%clk 0:00:24.6]} 23. Qc4 {[%clk 0:00:27.6]}
23... Ng6 {[%clk 0:00:01.8]} 24. cxd6 {[%clk 0:00:25.1]} 24... cxd6 {[%clk
0:00:02.2]} 25. Qc6 {[%clk 0:00:24.9]} 25... Rd8 {[%clk 0:00:01.2]} 26. Rd4
{[%clk 0:00:20.3]} 1-0

[Event "*** Titled Tuesday Blitz"]
[Site "Chess.com"]
[Date "2021.02.16"]
[Round "1"]
[White "coalescenet"]
[Black "Bykov_Egor"]
[Result "0-1"]
[WhiteElo "2206"]
[BlackElo "2534"]
[TimeControl "180+1"]
[EndTime "10:06:47 PST"]
[Termination "Bykov_Egor won by resignation"]

1. d4 {[%clk 0:02:53.7]} 1... Nf6 {[%clk 0:02:59.6]} 2. c4 {[%clk 0:02:53.6]}
2... e6 {[%clk 0:02:58.7]} 3. a3 {[%clk 0:02:53.3]} 3... b6 {[%clk 0:02:57.5]}
4. Nf3 {[%clk 0:02:50.9]} 4... Bb7 {[%clk 0:02:57.4]} 5. g3 {[%clk 0:02:51.1]}
5... d5 {[%clk 0:02:57.2]} 6. Bg2 {[%clk 0:02:48.5]} 6... Be7 {[%clk 0:02:48.3]}
7. O-O {[%clk 0:02:45.9]} 7... O-O {[%clk 0:02:48.5]} 8. Qc2 {[%clk 0:02:44.9]}
8... Nbd7 {[%clk 0:02:33.8]} 9. cxd5 {[%clk 0:02:37]} 9... exd5 {[%clk
0:02:31.4]} 10. b4 {[%clk 0:02:36.6]} 10... Ne4 {[%clk 0:02:28.6]} 11. Nbd2
{[%clk 0:02:28.5]} 11... Bf6 {[%clk 0:02:17.8]} 12. Bb2 {[%clk 0:02:26.9]} 12...
Re8 {[%clk 0:02:13.6]} 13. Rac1 {[%clk 0:02:24.6]} 13... Nxd2 {[%clk 0:02:02.2]}
14. Qxd2 {[%clk 0:02:13.2]} 14... Ba6 {[%clk 0:02:02.3]} 15. Rfe1 {[%clk
0:02:11.6]} 15... Rc8 {[%clk 0:02:02.5]} 16. Rc2 {[%clk 0:01:49.9]} 16... c6
{[%clk 0:02:02.2]} 17. Qc1 {[%clk 0:01:45.8]} 17... Bb5 {[%clk 0:02:00.1]} 18.
Ba1 {[%clk 0:01:35.5]} 18... Qe7 {[%clk 0:01:54]} 19. h4 {[%clk 0:01:30.3]}
19... Ba4 {[%clk 0:01:50.7]} 20. Rc3 {[%clk 0:01:29]} 20... c5 {[%clk
0:01:42.6]} 21. Re3 {[%clk 0:01:28.3]} 21... Qf8 {[%clk 0:01:28.8]} 22. dxc5
{[%clk 0:01:16.5]} 22... Bxa1 {[%clk 0:01:26.3]} 23. Qxa1 {[%clk 0:01:04.6]}
23... Rxe3 {[%clk 0:01:25.4]} 24. fxe3 {[%clk 0:01:04.3]} 24... bxc5 {[%clk
0:01:26]} 25. bxc5 {[%clk 0:01:03.3]} 25... Qxc5 {[%clk 0:01:26]} 26. Qd4 {[%clk
0:00:54.7]} 26... Nf6 {[%clk 0:01:11.2]} 27. Ne5 {[%clk 0:00:42.3]} 27... Qxa3
{[%clk 0:01:01.2]} 28. Qxa7 {[%clk 0:00:33.7]} 28... Qc3 {[%clk 0:00:46.8]} 29.
Qxf7+ {[%clk 0:00:29.5]} 29... Kh8 {[%clk 0:00:46.5]} 30. Nd3 {[%clk 0:00:28.5]}
30... Bc2 {[%clk 0:00:41.3]} 31. Rc1 {[%clk 0:00:22.8]} 31... Qd2 {[%clk
0:00:37.4]} 32. Qe6 {[%clk 0:00:17.8]} 32... Re8 {[%clk 0:00:37.3]} 33. Qf5
{[%clk 0:00:09.5]} 33... Qxc1+ {[%clk 0:00:33.5]} 34. Nxc1 {[%clk 0:00:05.3]}
34... Bxf5 {[%clk 0:00:34.4]} 0-1